{"text_format":"1","workbook":"xlsx","n_sheets":5,"sheets":["ACCUEIL","ASSN","MAITRISE","BAREME","EDITION ATTESTATION"],"not_rendered":{"charts":0,"images":11,"macros":1,"external_links":0,"defined_names":0,"comments":0,"pivot_tables":0},"unopened":[],"bounds":{"document_bytes":16777216,"sheet_cells":100000,"rows_first":2000,"rows_last":500,"rows_between":2000,"halvings":0,"cell_chars":16384,"cell_head_chars":4096},"cells_cut":0,"cells_raw":0,"read":"whole","date_system":"1900"}

{"sheet":"ACCUEIL","index":0,"n_rows":11,"n_cols":3,"rows_kept":11,"cut":false,"hidden":false,"merged":[[14,2,22,7]]}
[]
[]
[]
[]
[]
[]
[]
[]
[]
[null,null,"OUTIL DE VALIDATION DE "]
[null,null,"L'ATTESTATION DU SAVOIR NAGER"]

{"sheet":"ASSN","index":1,"n_rows":8,"n_cols":12,"rows_kept":8,"cut":false,"hidden":false,"merged":[]}
[]
[null,"TEST DU SAVOIR NAGER","CHUTE ARRIERE DANS L'EAU","DEPLACEMENT 1","IMMERSION 1","DEPLACEMENT VENTRAL","MAINTIEN VERTICAL","DEMI-TOUR","DEPLACEMENT DORSAL","MAINTIEN HORIZONTAL","IMMERSION 2","DEPLACEMENT VENTRAL"]
[null,"VISUEL"]
[null,"NIVEAU DE MAITRISE","à partir du bord de la piscine, entrer dans l'eau en chute arrière ","se déplacer sur une distance de 3,5 mètres en direction d'un obstacle ","franchir en immersion complète l'obstacle sur une distance de 1,5 mètre ","se déplacer sur le ventre sur une distance de 20 mètres ","au cours de ce déplacement, au signal sonore, réaliser un surplace vertical pendant 15 secondes puis reprendre le déplacement pour terminer la distance des 20 mètres ","faire demi-tour sans reprise d'appuis et passer d'une position ventrale à une position dorsale ","se déplacer sur le dos sur une distance de 15 mètres ","au cours de ce déplacement, au signal sonore réaliser un surplace en position horizontale dorsale pendant 15 secondes, puis reprendre le déplacement pour terminer la distance des 20 mètres ;","se retourner sur le ventre pour franchir à nouveau l'obstacle en immersion complète ","se déplacer sur le ventre pour revenir au point de départ"]
[null,"Insuffisante","Par les pieds",null,"Se bouche le nez","Corps: vertical \nRegard: droit devant \nBras: petits ","/",null,"Corps: vertical\nRegard: droit derrière \nBras: petits ou sans","/","Se bouche le nez","Corps: vertical \nRegard: droit devant  \nBras: petits "]
[null,"Fragile","Par les fesses",null,"Utilise que les pieds \nSe retourne pour voir","Corps: 45°\nRegard: droit devant \nBras: moyens ","Eau au menton",null,"Corps: 45°\n Regard: droit derrière \nBras: moyens ","Assis en transat","Utilise que les pieds \nSe retourne pour voir","Corps: 45° \nRegard: droit devant\n Bras: moyens "]
[null,"Satisfaisante","Par les fesses et bas du dos",null,"Utilise bras et jambes entre 2 eaux","Corps: horizontal\nRegard: vers le bas \nBras: grand","Eau mi-gorge",null,"Corps: horizontal \nRegard: vers le haut  \nBras: grand","Petite Etoile + jambes à 45°","Utilise bras et jambes entre 2 eaux","Corps: horizontal \nRegard: vers le bas  \nBras: grand"]
[null,"Très bonne maitrise","En boule arrière complète",null,"Utilise bras et jambes à une bonne profondeur","Corps: allongé \nRegard: bas et avant\n Bras: propulseur pour glisse","Eau aux épaules",null,"Corps: allongé \nRegard: arrière et haut \n Bras: propulseur pour glisse","Etoile complète et grande","Utilise bras et jambes à une bonne profondeur","Corps: allongé \nRegard: bas et avant \nBras: propulseur pour glisse"]

{"sheet":"MAITRISE","index":2,"n_rows":39,"n_cols":14,"rows_kept":39,"cut":false,"hidden":false,"merged":[]}
[null,null,null,null,null,0]
[null,null,"CHUTE ARRIERE DANS L'EAU","DEPLACEMENT 1","IMMERSION 1","DEPLACEMENT VENTRAL","MAINTIEN VERTICAL","DEMI-TOUR","DEPLACEMENT DORSAL","MAINTIEN HORIZONTAL","IMMERSION 2","DEPLACEMENT VENTRAL"]
[null,"CLASSE",null,null,null,null,null,null,null,null,null,null,"TOTAL","Maitrise finale"]
[null,"Elève 1",null,null,null,null,null,null,null,null,null,null,{"$f":"SUM(C4:L4)","v":0},{"$f":"VLOOKUP(M4,BAREME!$C$4:$D$24,2,TRUE)","v":"Test non réalisé"}]
[null,"Elève 2",null,null,null,null,null,null,null,null,null,null,{"$f":"SUM(C5:L5)","v":0},{"$f":"VLOOKUP(M5,BAREME!$C$4:$D$24,2,TRUE)","v":"Test non réalisé"}]
[null,"Elève 3",null,null,null,null,null,null,null,null,null,null,0,{"$f":"VLOOKUP(M6,BAREME!$C$4:$D$24,2,TRUE)","v":"Test non réalisé"}]
[null,"Elève 4",null,null,null,null,null,null,null,null,null,null,0,{"$f":"VLOOKUP(M7,BAREME!$C$4:$D$24,2,TRUE)","v":"Test non réalisé"}]
[null,"Elève 5",null,null,null,null,null,null,null,null,null,null,0,{"$f":"VLOOKUP(M8,BAREME!$C$4:$D$24,2,TRUE)","v":"Test non réalisé"}]
[null,"Elève 6",null,null,null,null,null,null,null,null,null,null,0,{"$f":"VLOOKUP(M9,BAREME!$C$4:$D$24,2,TRUE)","v":"Test non réalisé"}]
[null,"Elève 7",null,null,null,null,null,null,null,null,null,null,0,{"$f":"VLOOKUP(M10,BAREME!$C$4:$D$24,2,TRUE)","v":"Test non réalisé"}]
[null,"Elève 8",null,null,null,null,null,null,null,null,null,null,0,{"$f":"VLOOKUP(M11,BAREME!$C$4:$D$24,2,TRUE)","v":"Test non réalisé"}]
[null,"Elève 9",null,null,null,null,null,null,null,null,null,null,0,{"$f":"VLOOKUP(M12,BAREME!$C$4:$D$24,2,TRUE)","v":"Test non réalisé"}]
[null,"Elève 10",null,null,null,null,null,null,null,null,null,null,0,{"$f":"VLOOKUP(M13,BAREME!$C$4:$D$24,2,TRUE)","v":"Test non réalisé"}]
[null,"Elève 11",null,null,null,null,null,null,null,null,null,null,0,{"$f":"VLOOKUP(M14,BAREME!$C$4:$D$24,2,TRUE)","v":"Test non réalisé"}]
[null,"Elève 12",null,null,null,null,null,null,null,null,null,null,0,{"$f":"VLOOKUP(M15,BAREME!$C$4:$D$24,2,TRUE)","v":"Test non réalisé"}]
[null,"Elève 13",null,null,null,null,null,null,null,null,null,null,0,{"$f":"VLOOKUP(M16,BAREME!$C$4:$D$24,2,TRUE)","v":"Test non réalisé"}]
[null,"Elève 14",null,null,null,null,null,null,null,null,null,null,0,{"$f":"VLOOKUP(M17,BAREME!$C$4:$D$24,2,TRUE)","v":"Test non réalisé"}]
[null,"Elève 15",null,null,null,null,null,null,null,null,null,null,0,{"$f":"VLOOKUP(M18,BAREME!$C$4:$D$24,2,TRUE)","v":"Test non réalisé"}]
[null,"Elève 16",null,null,null,null,null,null,null,null,null,null,0,{"$f":"VLOOKUP(M19,BAREME!$C$4:$D$24,2,TRUE)","v":"Test non réalisé"}]
[null,"Elève 17",null,null,null,null,null,null,null,null,null,null,0,{"$f":"VLOOKUP(M20,BAREME!$C$4:$D$24,2,TRUE)","v":"Test non réalisé"}]
[null,"Elève 18",null,null,null,null,null,null,null,null,null,null,0,{"$f":"VLOOKUP(M21,BAREME!$C$4:$D$24,2,TRUE)","v":"Test non réalisé"}]
[null,"Elève 19",null,null,null,null,null,null,null,null,null,null,0,{"$f":"VLOOKUP(M22,BAREME!$C$4:$D$24,2,TRUE)","v":"Test non réalisé"}]
[null,"Elève 20",null,null,null,null,null,null,null,null,null,null,0,{"$f":"VLOOKUP(M23,BAREME!$C$4:$D$24,2,TRUE)","v":"Test non réalisé"}]
[null,"Elève 21",null,null,null,null,null,null,null,null,null,null,0,{"$f":"VLOOKUP(M24,BAREME!$C$4:$D$24,2,TRUE)","v":"Test non réalisé"}]
[null,"Elève 22",null,null,null,null,null,null,null,null,null,null,0,{"$f":"VLOOKUP(M25,BAREME!$C$4:$D$24,2,TRUE)","v":"Test non réalisé"}]
[null,"Elève 23",null,null,null,null,null,null,null,null,null,null,0,{"$f":"VLOOKUP(M26,BAREME!$C$4:$D$24,2,TRUE)","v":"Test non réalisé"}]
[null,"Elève 24",null,null,null,null,null,null,null,null,null,null,0,{"$f":"VLOOKUP(M27,BAREME!$C$4:$D$24,2,TRUE)","v":"Test non réalisé"}]
[null,"Elève 25",null,null,null,null,null,null,null,null,null,null,0,{"$f":"VLOOKUP(M28,BAREME!$C$4:$D$24,2,TRUE)","v":"Test non réalisé"}]
[null,"Elève 26",null,null,null,null,null,null,null,null,null,null,0,{"$f":"VLOOKUP(M29,BAREME!$C$4:$D$24,2,TRUE)","v":"Test non réalisé"}]
[null,"Elève 27",null,null,null,null,null,null,null,null,null,null,0,{"$f":"VLOOKUP(M30,BAREME!$C$4:$D$24,2,TRUE)","v":"Test non réalisé"}]
[null,"Elève 28",null,null,null,null,null,null,null,null,null,null,0,{"$f":"VLOOKUP(M31,BAREME!$C$4:$D$24,2,TRUE)","v":"Test non réalisé"}]
[null,"Elève 29",null,null,null,null,null,null,null,null,null,null,0,{"$f":"VLOOKUP(M32,BAREME!$C$4:$D$24,2,TRUE)","v":"Test non réalisé"}]
[null,"Elève 30",null,null,null,null,null,null,null,null,null,null,0,{"$f":"VLOOKUP(M33,BAREME!$C$4:$D$24,2,TRUE)","v":"Test non réalisé"}]
[null,"Elève 31",null,null,null,null,null,null,null,null,null,null,0,{"$f":"VLOOKUP(M34,BAREME!$C$4:$D$24,2,TRUE)","v":"Test non réalisé"}]
[null,"Elève 32",null,null,null,null,null,null,null,null,null,null,0,{"$f":"VLOOKUP(M35,BAREME!$C$4:$D$24,2,TRUE)","v":"Test non réalisé"}]
[null,"Elève 33",null,null,null,null,null,null,null,null,null,null,0,{"$f":"VLOOKUP(M36,BAREME!$C$4:$D$24,2,TRUE)","v":"Test non réalisé"}]
[null,"Elève 34",null,null,null,null,null,null,null,null,null,null,0,{"$f":"VLOOKUP(M37,BAREME!$C$4:$D$24,2,TRUE)","v":"Test non réalisé"}]
[null,"Elève 35",null,null,null,null,null,null,null,null,null,null,0,{"$f":"VLOOKUP(M38,BAREME!$C$4:$D$24,2,TRUE)","v":"Test non réalisé"}]
[null,"Elève 36",null,null,null,null,null,null,null,null,null,null,0,{"$f":"VLOOKUP(M39,BAREME!$C$4:$D$24,2,TRUE)","v":"Test non réalisé"}]

{"sheet":"BAREME","index":3,"n_rows":24,"n_cols":6,"rows_kept":24,"cut":false,"hidden":false,"merged":[[1,2,1,3]]}
[]
[null,null,"Barême à  Définir"]
[null,null,"Points ","Maitrise",null,"Niveau "]
[null,null,0,"Test non réalisé"]
[null,null,1,"Maitrise insuffisante",null,0]
[null,null,3,"Maitrise insuffisante",null,1]
[null,null,5,"Maitrise insuffisante",null,2]
[null,null,7,"Maitrise insuffisante",null,3]
[null,null,9,"Maitrise insuffisante",null,4]
[null,null,10,"Maitrise fragile"]
[null,null,12,"Maitrise fragile"]
[null,null,14,"Maitrise fragile"]
[null,null,16,"Maitrise fragile"]
[null,null,17,"Maitrise fragile"]
[null,null,19,"Maitrise satisfaisante"]
[null,null,21,"Maitrise satisfaisante"]
[null,null,23,"Maitrise satisfaisante"]
[null,null,24,"Maitrise satisfaisante"]
[null,null,26,"Maitrise satisfaisante"]
[null,null,28,"Très bonne maitrise"]
[null,null,29,"Très bonne maitrise"]
[null,null,31,"Très bonne maitrise"]
[null,null,33,"Très bonne maitrise"]
[null,null,35,"Très bonne maitrise"]

{"sheet":"EDITION ATTESTATION","index":4,"n_rows":44,"n_cols":22,"rows_kept":44,"cut":false,"hidden":false,"merged":[[2,1,2,7],[3,3,3,5],[26,18,32,21],[28,10,29,12],[31,10,31,12],[8,10,8,12],[3,18,9,21],[13,15,13,21],[15,15,15,21],[36,15,36,21],[38,15,38,21],[43,14,43,21],[20,14,20,21],[5,10,6,12],[10,14,12,20],[33,14,34,20]]}
[]
[]
[null,"Elèves avec attestation"]
[null,"NOM","Prénom","Date de naissance",null,null,"École / Collège","Académie",null,null,null,"Académie de",null,null,null,null,null,null,"PHOTO"]
[null,"DA COSTA","Mickaël",16,12,1983,"LP LES CANUTS","LYON"]
[null,"a","b","c","d","e","f","g",null,null,{"$f":"H5","v":"LYON"}]
[]
[]
[null,null,null,null,null,null,null,null,null,null,"Cachet de l'établissement et signature du directeur de l'école ou du chef d'établissement",null,null,null,"Attestation"]
[]
[null,null,null,null,null,null,null,null,null,null,null,null,null,null,"savoir nager securitaire"]
[]
[]
[null,null,null,null,null,null,null,null,null,null,null,null,null,null,"NOM : "]
[]
[null,null,null,null,null,null,null,null,null,null,null,null,null,null,"Prénom :"]
[]
[null,null,null,null,null,null,null,null,null,null,null,null,null,null,"Date de naissance : ",null,null,null,"/",null,"/"]
[]
[null,null,null,null,null,null,null,null,null,null,null,null,null,null,"École / Collège :"]
[]
[]
[]
[]
[]
[]
[null,null,null,null,null,null,null,null,null,null,null,"Académie de",null,null,null,null,null,null,"PHOTO"]
[]
[null,null,null,null,null,null,null,null,null,null,{"$f":"H6","v":"g"}]
[]
[]
[null,null,null,null,null,null,null,null,null,null,"Cachet de l'établissement et signature du directeur de l'école ou du chef d'établissement",null,null,null,"Attestation"]
[]
[null,null,null,null,null,null,null,null,null,null,null,null,null,null,"savoir nager sécuritaire"]
[]
[]
[null,null,null,null,null,null,null,null,null,null,null,null,null,null,"NOM : ",{"$f":"B6","v":"a"}]
[]
[null,null,null,null,null,null,null,null,null,null,null,null,null,null,"Prénom :",{"$f":"C6","v":"b"}]
[]
[null,null,null,null,null,null,null,null,null,null,null,null,null,null,"Date de naissance : ",null,null,{"$f":"D6","v":"c"},"/",{"$f":"E6","v":"d"},"/",{"$f":"F6","v":"e"}]
[]
[null,null,null,null,null,null,null,null,null,null,null,null,null,null,"École / Collège :"]
[null,null,null,null,null,null,null,null,null,null,null,null,null,null,{"$f":"G6","v":"f"}]